Cogmind - Beta 15 @@@ ROGUE MODE // 2025.05.17 @ 02:29:35 Player: Sunvar Result: Destroyed by C-40 Crusher with Compactor Performance ------------- Evolutions (4) 2000 Regions Visited (5) 1000 Robots Destroyed (30) 150 Value Destroyed (608) 608 Prototype IDs (31) 620 Alien Tech Used (0) 0 Bonus (800) 800 TOTAL SCORE: 5178 Bonus ------- Registered with UFD 300 Met Optimus in HQ 500 Cogmind --------- Core Integrity 0/850 Matter 120/300 Energy 85/100 System Corruption 18% Temperature Cool (0) Movement Core (100) Ox1 Location -6/Waste Parts ------- > --- POWER (2) -------- (None) > --- PROPULSION (4) --- (None) > --- UTILITY (7) ------ (None) > --- WEAPON (2) ------- Companion Sword > --- INVENTORY (5) ---- Cargo Legs Armored Wheel Armored Wheel Proton Cannon Peak State ------------ > --- POWER ------------ Light Deuterium Engine Light Deuterium Engine > --- PROPULSION ------- Armored Treads Advanced Treads Improved Medium Treads Armored Wheel > --- UTILITY ---------- Cooling System Huge Storage Unit Experimental Sensor Array Seismic Detector Light Armor Plating Hardened Light Armor Plating Hardlight Generator > --- WEAPON ----------- Phase Cannon Companion Sword > --- INVENTORY -------- Light Nuclear Core Overtuned Titanium Leg Overtuned Titanium Leg Cargo Legs Large Storage Unit High-capacity Matter Pod Makeshift Light Armor Plating A0-MCA's Component Scanner Proton Cannon Particle Cannon Subdweller Beam Cannon Subdweller Beam Cannon Heavy Battle Rifle Grenade Launcher Multitool [Rating: 54] Favorites ----------- Power Ion Engine Engine Ion Engine Power Core Nuclear Core Propulsion Light Treads Treads Light Treads Wheel Armored Wheel Utility Seismic Detector Device Seismic Detector Storage Huge Storage Unit Processor Advanced Melee Analysis Suite Hackware System Shield Protection Light Armor Plating Weapon Improved Light Cannon Energy Cannon Phase Cannon Ballistic Gun Light Assault Rifle Ballistic Cannon Improved Light Cannon Slashing Weapon Companion Sword Special Melee Weapon Datajack Build | -11 -10 -10 -8 -6 -6 ------- Run | Yrd Mat Sub Scr Fac Was Slots Evolved 8 | . . . . 8 . Power 1 | . . . . 1 . Propulsion 2 | . . . . 2 . Utility 5 | . . . . 5 . Weapon . | . . . . . . Parts Attached 47 | 7 5 12 11 12 . Power 9 | 1 . 3 4 1 . Engine 7 | 1 . 3 2 1 . Core 2 | . . . 2 . . Reactor . | . . . . . . Propulsion 12 | 2 . 3 4 3 . Treads 6 | 2 . 1 2 1 . Leg . | . . . . . . Wheel 6 | . . 2 2 2 . Hover . | . . . . . . Flight . | . . . . . . Utility 16 | 2 3 3 . 8 . Device 5 | 1 . . . 4 . Storage 4 | 1 2 1 . . . Processor 1 | . . . . 1 . Hackware 1 | . . . . 1 . Protection 5 | . 1 2 . 2 . Artifact . | . . . . . . Weapon 10 | 2 2 3 3 . . Energy Gun . | . . . . . . Energy Cannon 2 | . . 1 1 . . Ballistic Gun 2 | 2 . . . . . Ballistic Cannon 4 | . 2 2 . . . Launcher . | . . . . . . Special Weapon . | . . . . . . Impact Weapon . | . . . . . . Slashing Weapon 1 | . . . 1 . . Piercing Weapon . | . . . . . . Special Melee Weapon 1 | . . . 1 . . Unidentified Prototypes 1 | . . . 1 . . Parts Lost 14 | . . 8 . . 6 Power 3 | . . 2 . . 1 Propulsion 6 | . . 3 . . 3 Utility 3 | . . 1 . . 2 Weapon 2 | . . 2 . . . Highest Loss Streak 6 | . . 3 . . 6 To Critical Strikes . | . . . . . . Average Backups 19 | 3 11 21 23 22 19 Power 1 | . 1 . 1 1 . Propulsion 2 | 1 2 1 3 6 6 Utility 6 | . 4 6 7 6 6 Weapon 8 | . 3 10 10 6 4 Tool/Special . | . . . . . . Unused Backups 40 | . 5 5 11 3 16 Power 3 | . . 1 1 . 1 Propulsion 9 | . 1 . . 2 6 Utility 6 | . 1 . 1 . 4 Weapon 21 | . 3 4 9 1 4 Tool/Special 1 | . . . . . 1 Average Slot Usage (%) 97 | . 99 98 99 89 70 Engine 9 | . 14 12 4 13 8 Core 3 | . . . 9 . . Treads 20 | . 28 15 22 14 9 Wheel 6 | . . 12 5 10 9 Device 13 | . 13 11 14 20 10 Storage 13 | . 14 14 14 6 4 Protection 1 | . . 2 . 12 9 Energy Cannon 3 | . . . 8 . . Ballistic Gun 1 | . 5 . . . . Ballistic Cannon 16 | . 22 28 7 . . Slashing Weapon 1 | . . . 1 6 6 Special Melee Weapon 3 | . . . 10 . . Peak Build Rating 54 | 7 10 16 26 54 52 Average Rating 19 | 5 9 13 22 48 41 On Entrance 18 | . 7 10 16 25 52 Naked Turns . | . . . . . . Heaviest Build 119 | 14 36 98 97 119 104 Greatest Support 50 | 40 40 40 50 24 24 Greatest Overweight (x) 9 | 1 1 5 8 9 4 Average Overweight (x) 2 | . . 3 3 5 3 Largest Inventory Capacity 25 | 8 15 25 25 25 25 Average Capacity 21 | 7 12 23 25 25 19 Most Carried 25 | 4 15 25 25 25 25 Average Carried 20 | 3 11 21 24 23 19 Final Capacity 25 | 8 15 25 25 25 5 Final Carried 25 | 4 15 25 25 25 5 Class Distribution -------------------- 88% | Mutant 9% | Derelict-Mutant Dominant Class ---------------- Mutant | -10/Materials Mutant | -10/Subcaves Mutant | -8/Scraptown Derelict-Mutant | -6/Factory Derelict-Mutant | -6/Waste Resources | -11 -10 -10 -8 -6 -6 ----------- Run | Yrd Mat Sub Scr Fac Was Matter Collected 1637 | 246 440 821 120 10 . Remotely . | . . . . . . Salvage Created 510 | 21 334 145 . 10 . Parts 42 | 2 30 7 . 3 . Haulers Intercepted 2 | . 2 . . . . Recyclers Shooed 1 | . 1 . . . . Parts Field Recycled . | . . . . . . Retrieved Matter . | . . . . . . Parts Self-Destructed 6 | . . 6 . . . Prevented . | . . . . . . Kills | -11 -10 -10 -8 -6 -6 ------- Run | Yrd Mat Sub Scr Fac Was Combat Hostiles Destroyed 19 | . 10 9 . . . Guns 3 | . 3 . . . . Cannons 16 | . 7 9 . . . Classes Destroyed 9 | 1 7 1 . . . Worker 2 | . 2 . . . . Builder 1 | . 1 . . . . Tunneler 3 | 1 1 . . 1 . Hauler 2 | . 2 . . . . Recycler 1 | . 1 . . . . Watcher 2 | . 2 . . . . Swarmer 8 | . 8 . . . . Grunt 3 | . 2 1 . . . Subdweller 8 | . . 8 . . . Best Kill Streak 3 | 1 3 2 . 1 . Combat Bots Only 3 | . 3 2 . . . Max Kills in Single Turn 2 | 1 2 1 . 1 . Gunslinging 1 | . 1 . . . . Exploded . | . . . . . . Melee . | . . . . . . Uniques/NPCs Destroyed . | . . . . . . Combat | -11 -10 -10 -8 -6 -6 -------- Run | Yrd Mat Sub Scr Fac Was Hostile Shots Fired 134 | . 40 70 . . 24 Missed 38 | . 20 18 . . . Hits 96 | . 20 52 . . 24 Melee 24 | . . . . . 24 Projectile 72 | . 20 52 . . . AOE 2 | . . 2 . . . Critical Strikes 15 | . . 3 . . 12 Damage Taken 2407 | . 165 1118 . . 1124 Core 1007 | . 51 67 . . 889 Absorbed by Shields . | . . . . . . Core Remaining (%) 76 | 100 . . 52 . . Volleys Fired 104 | 1 50 53 . . . Largest 2 | 2 2 2 . . . Hottest 80 | 40 66 80 . . . Shots Fired 194 | 2 95 97 . . . Gun 36 | 2 34 . . . . Cannon 158 | . 61 97 . . . Launcher . | . . . . . . Special . | . . . . . . Kinetic 193 | 2 95 96 . . . Thermal 1 | . . 1 . . . Explosive . | . . . . . . Electromagnetic . | . . . . . . Robot Hit Streak 15 | 1 9 15 . . . Robot Miss Streak 6 | . 6 3 . . . Penetration Max . | . . . . . . Secondary Targets 1 | . 1 . . . . Max Gunslinging Chain 1 | . 1 . . . . Shots Hit Robots 123 | 1 43 57 1 5 16 Core Hits 37 | 1 20 16 . . . Critical Kills 1 | . 1 . . . . Critical Parts Destroyed . | . . . . . . Critical Strikes 6 | . 3 3 . . . Destroy 1 | . 1 . . . . Blast 5 | . 2 3 . . . Melee Attacks 29 | . . . 1 12 16 Impact . | . . . . . . Slashing 28 | . . . . 12 16 Piercing . | . . . . . . Sneak Attacks 4 | . . . 1 3 . Combat Hostiles . | . . . . . . Follow-up Attacks 2 | . . . . . 2 Damage Inflicted 2600 | 15 782 1202 . 294 307 Guns 262 | 15 247 . . . . Cannons 1714 | . 512 1202 . . . Explosions . | . . . . . . Melee 601 | . . . . 294 307 Ramming 23 | . 23 . . . . Kinetic 1976 | 15 759 1202 . . . Thermal . | . . . . . . Explosive . | . . . . . . Electromagnetic . | . . . . . . Impact . | . . . . . . Slashing 601 | . . . . 294 307 Piercing . | . . . . . . Highest Corruption 18 | . . . . . 18 Average Corruption 9 | . . . . . 9 Corruption Purged . | . . . . . . Corruption Blocked . | . . . . . . Effects 5 | . . . . . 5 Message Errors 2 | . . . . . 2 Matter Fused 1 | . . . . . 1 Heat Flow Errors 1 | . . . . . 1 Alerts 1 | . . . . . 1 Overload Shots . | . . . . . . Overflow Damage 71 | . 3 22 . 46 . Projectiles 25 | . 3 22 . . . Explosions . | . . . . . . Melee 46 | . . . . 46 . Knockbacks 18 | . 4 14 . . . Impact . | . . . . . . Kinetic 18 | . 4 14 . . . Secondary . | . . . . . . Self-Inflicted Damage . | . . . . . . Shots . | . . . . . . Rammed 4 | . 4 . . . . Targets Rammed 7 | . 7 . . . . Kicked . | . . . . . . Crushed 3 | . 3 . . . . Highest Temperature 226 | . 46 12 . . 226 Average Temperature 25 | . 12 12 . . 136 Received Heat Transfer 207 | . 9 198 . . . Siege Activations . | . . . . . . Martial Activations . | . . . . . . Shielding Activations . | . . . . . . Robots Disrupted . | . . . . . . Combat Hostiles . | . . . . . . Robots Corrupted . | . . . . . . Combat Hostiles . | . . . . . . Parts Fried . | . . . . . . Impact Corruptions . | . . . . . . Robots Melted . | . . . . . . Combat Hostiles . | . . . . . . Parts Melted 1 | . . 1 . . . Heat Transferred . | . . . . . . Parts Sabotaged . | . . . . . . Parts Stolen . | . . . . . . Parts Stripped . | . . . . . . Power Chain Reactions . | . . . . . . Alert | -11 -10 -10 -8 -6 -6 ------- Run | Yrd Mat Sub Scr Fac Was Maximum Alert Level . | . . . . . . Low Security (%) 100 | 100 100 . . 100 100 Level 1 . | . . . . . . Level 2 . | . . . . . . Level 3 . | . . . . . . Level 4 . | . . . . . . Level 5 . | . . . . . . High Security . | . . . . . . Max Security . | . . . . . . Peak Influence 89 | 5 89 . . 30 . Initial . | . . . . . . Average 11 | . 16 . . 1 . Influence Increases 409 | 5 334 30 . 40 . Destroy 0b10 Robot/C 220 | . 200 20 . . . Destroy 0b10 Robot/NC 55 | 5 45 . . 5 . Destroy Leader 58 | . 48 10 . . . Successful Hack 50 | . 20 . . 30 . Disable Machine 15 | . 15 . . . . Destroy Structure 11 | . 6 . . 5 . Influence Decreases 409 | 5 334 30 . 40 . Time Decay 409 | 5 334 30 . 40 . Squads Dispatched 2 | . . . . 2 . Investigation 1 | . . . . 1 . Extermination . | . . . . . . Reinforcement 1 | . . . . 1 . Assault . | . . . . . . Garrison . | . . . . . . Intercept . | . . . . . . Searches Triggered . | . . . . . . Construction Impeded . | . . . . . . Haulers Reinforced . | . . . . . . Active Scanning Responses . | . . . . . . Cargo Convoy Interrupts . | . . . . . . Stealth | -11 -10 -10 -8 -6 -6 --------- Run | Yrd Mat Sub Scr Fac Was Distress Signals 2 | . 1 . . 1 . Communications Jammed . | . . . . . . Distress Signals . | . . . . . . Times Spotted 43 | . 26 10 . 1 6 Peak Tracking Total 6 | . 4 2 . . 6 Tactical Retreats . | . . . . . . Traps | -11 -10 -10 -8 -6 -6 ------- Run | Yrd Mat Sub Scr Fac Was Traps Triggered 4 | . 1 2 . 1 . Indirectly . | . . . . . . Trap Hack Attempts . | . . . . . . Triggered . | . . . . . . Disarmed . | . . . . . . Reprogrammed . | . . . . . . Reused . | . . . . . . Traps Extracted . | . . . . . . Installed . | . . . . . . Triggered . | . . . . . . Machines | -11 -10 -10 -8 -6 -6 ---------- Run | Yrd Mat Sub Scr Fac Was Machines Disabled 2 | . 1 1 . . . Max in Single Turn 1 | . 1 1 . . . Garrison Access 1 | . . . . 1 . Machines Repaired . | . . . . . . Machines Dismantled . | . . . . . . Machines Sabotaged . | . . . . . . Overloaded Fab Kills . | . . . . . . Hacking | -11 -10 -10 -8 -6 -6 --------- Run | Yrd Mat Sub Scr Fac Was Machines Accessed 21 | . 9 1 6 5 . Terminals 9 | . 7 . . 2 . Fabricators 1 | . . . . 1 . Repair Stations . | . . . . . . Recycling Units 3 | . 2 . . 1 . Scanalyzers . | . . . . . . Garrison Access 1 | . . . . 1 . Total Hacks 55 | . 21 1 24 9 . Successful 40 | . 10 1 24 5 . Failed 15 | . 11 . . 4 . Catastrophic 2 | . . . . 2 . Database Lockouts . | . . . . . . Manual 15 | . 8 . . 7 . Terminals 24 | . 18 . . 6 . Fabricators 1 | . . . . 1 . Repair Stations . | . . . . . . Recycling Units 4 | . 3 . . 1 . Scanalyzers . | . . . . . . Garrison Access 1 | . . . . 1 . Terminal Hacks 32 | . 6 1 24 1 . Record 16 | . . . 16 . . Robot Analysis 7 | . 1 . 6 . . Prototype ID Bank 2 | . 2 . . . . Open Door 1 | . . . 1 . . Terminal Index 1 | . 1 . . . . Recycling Unit Index 1 | . . . . 1 . Locate Traps 2 | . 2 . . . . Proto ID Catalog 2 | . . 1 1 . . Fabricator Hacks . | . . . . . . Repair Station Hacks . | . . . . . . Recycling Unit Hacks 1 | . 1 . . . . Retrieve Components 1 | . 1 . . . . Scanalyzer . | . . . . . . Garrison Access Hacks 1 | . . . . 1 . Seal Access 1 | . . . . 1 . Unauthorized Hacks 6 | . 3 . . 3 . Terminals 4 | . 3 . . 1 . Botnet 4 | . 3 . . 1 . Fabricators 1 | . . . . 1 . Report 1 | . . . . 1 . Repair Stations . | . . . . . . Recycling Units 1 | . . . . 1 . Fedlink 1 | . . . . 1 . Scanalyzers . | . . . . . . Garrison Access . | . . . . . . Data Cores Recovered . | . . . . . . Used . | . . . . . . Hacking Detections 11 | . 8 . . 3 . Full Trace Events 1 | . 1 . . . . Feedback Events . | . . . . . . Feedback Blocked . | . . . . . . Robot Schematics Acquired . | . . . . . . Robots Built . | . . . . . . Authchips . | . . . . . . Time . | . . . . . . Total Robot Build Rating . | . . . . . . Part Schematics Acquired . | . . . . . . Parts Built . | . . . . . . Authchips . | . . . . . . Time . | . . . . . . Total Part Build Rating . | . . . . . . Parts Repaired . | . . . . . . Time . | . . . . . . Parts Recycled . | . . . . . . Recycled Matter . | . . . . . . Retrieved Matter . | . . . . . . Retrieved Components 10 | . 10 . . . . Parts Scanalyzed . | . . . . . . Part Schematics Acquired . | . . . . . . Parts Damaged . | . . . . . . Bothacking | -11 -10 -10 -8 -6 -6 ------------ Run | Yrd Mat Sub Scr Fac Was Used RIF Installer . | . . . . . . Robots Hacked 1 | . . . 1 . . Non-combat . | . . . . . . Combat 1 | . . . 1 . . Robot Hacks Applied 1 | . . . 1 . . parse_system 1 | . . . 1 . . Relay Couplers Released . | . . . . . . Fabnet Peak Effective % . | . . . . . . Robots Rewired . | . . . . . . Allies Hacked . | . . . . . . Hacks Repelled . | . . . . . . Allies | -11 -10 -10 -8 -6 -6 -------- Run | Yrd Mat Sub Scr Fac Was Total Allies . | . . . . . . Largest Group . | . . . . . . Highest-Rated Group . | . . . . . . Highest-Rated Ally . | . . . . . . Total Orders 1 | . . . . 1 . EXPLORE 1 | . . . . 1 . Ally Attacks . | . . . . . . Total Damage . | . . . . . . Kills . | . . . . . . Allies Corrupted . | . . . . . . Allies Melted . | . . . . . . Intel | -11 -10 -10 -8 -6 -6 ------- Run | Yrd Mat Sub Scr Fac Was Active Infowar (turns) 6940 | 26 1734 1752 2682 648 98 Sensors 741 | . . . . 643 98 Seismic 6940 | 26 1734 1752 2682 648 98 Robot Analysis Total 7 | . 1 . 6 . . Derelict Logs Recovered 6 | . . 2 4 . . Drone Launches 1 | . . . . 1 . Drone Recoveries . | . . . . . . Exploration | -11 -10 -10 -8 -6 -6 ------------- Run | Yrd Mat Sub Scr Fac Was Turns Passed 7351 | 88 1748 2060 2682 648 125 Spaces Moved 3760 | 48 978 1112 1214 349 59 Core 9 | 9 . . . . . Treads 1761 | 39 978 106 638 . . Legs . | . . . . . . Wheels 1990 | . . 1006 576 349 59 Hover . | . . . . . . Flight . | . . . . . . Fastest Speed 50 | 50 160 150 150 150 135 Average Speed 178 | 147 160 160 217 166 148 Slowest Speed 245 | 160 240 175 245 225 150 Overloaded Moves . | . . . . . . Propulsion Burnouts . | . . . . . . Robots Hopped . | . . . . . . Potential Cave-ins . | . . . . . . Cave-ins Triggered . | . . . . . . Exploration Rate (%) 50 | 3 100 55 88 10 45 Regions Visited 5 Branch Regions 2 Pre-discovered Areas 2 | . . 1 1 . . Known Exits Taken . | . . . . . . Unknown Exits Taken 4 | 1 1 1 1 . . Scrap Searched 22 | . . 16 6 . . Spaces Dug 7 | . 1 1 . 5 . Terrain Destroyed 12 | . 6 1 . 5 . Melee 5 | . . . . 5 . Projectile 7 | . 6 1 . . . AOE . | . . . . . . Terrain Rammed . | . . . . . . Walls Destroyed . | . . . . . . Machines Disabled . | . . . . . . Actions | -11 -10 -10 -8 -6 -6 --------- Run | Yrd Mat Sub Scr Fac Was Total 4161 | 60 1068 1284 1270 400 79 Wait 77 | . 1 61 5 10 . Move 3756 | 47 977 1111 1213 349 59 Hop . | . . . . . . Pick Up 67 | 5 16 23 15 8 . Fast Attach 20 | 6 4 1 5 2 2 Attach 17 | 1 . 7 . 9 . Detach 4 | . . . 1 3 . Swap 34 | . 4 20 6 4 . Drop 48 | . 9 8 24 3 4 Fire 104 | 1 50 53 . . . Melee 27 | . . . 1 12 14 Ram . | . . . . . . Kick . | . . . . . . Crush 7 | . 7 . . . . Escape Stasis . | . . . . . . Rewire . | . . . . . . Trap . | . . . . . . Miscellaneous . | . . . . . . Route ------- -11/Scrapyard -10/Materials (discovered 6 exits: [*Mat x3] / [*Min x2] / *Sub) -10/Subcaves (discovered 2 exits: [*Mat] / *Scr) -8/Scraptown (discovered 2 exits: *Fac x2) -6/Factory -6/Waste History --------- Turn | Location | Event 16 | -11/Scrapyard | Discovered new exit (range 15) 89 | -11/Scrapyard | Entered Materials 327 | -10/Materials | Build established: Mutant 330 | -10/Materials | Discovered new exit (range 8) 590 | -10/Materials | Discovered new exit (range 4) 804 | -10/Materials | Discovered new exit (range 7) 812 | -10/Materials | Discovered new exit (range 14) 990 | -10/Materials | Discovered new exit (range 15) 1827 | -10/Materials | Discovered new exit (range 7) 1837 | -10/Materials | Entered Subcaves 1838 | -10/Subcaves | Approached by a straggling Scientist 2240 | -10/Subcaves | Scientist uncovered a shortcut to Scraptown 2332 | -10/Subcaves | Shifting Twisted Machinery released Flamer 2758 | -10/Subcaves | Learned location of Zion (-7) 3007 | -10/Subcaves | Lost 3 parts (1p2n) 3319 | -10/Subcaves | Shifting Twisted Machinery released Sub. Machine Gun 3409 | -10/Subcaves | Disturbed a concealed Subdweller 3565 | -10/Subcaves | Visited 4L-MR0's lab 3583 | -10/Subcaves | Found Prototype Leg 3590 | -10/Subcaves | Identified Cargo Legs 3834 | -10/Subcaves | Discovered new exit (range 6) 3897 | -10/Subcaves | Entered Scraptown 4256 | -8/Scraptown | Scanned Subdweller tech in exchange for log data 4260 | -8/Scraptown | Learned Factory emergency access door positions 4263 | -8/Scraptown | Learned location of Extension (-5) 4265 | -8/Scraptown | Learned Research security intel 4416 | -8/Scraptown | Discovered new exit (range 11) 4487 | -8/Scraptown | Visited Assassins FH 4549 | -8/Scraptown | Visited Fellowship of the Rings 4585 | -8/Scraptown | Visited Cave Peace 5097 | -8/Scraptown | Visited Cyclists 5126 | -8/Scraptown | Visited Shadow of the Wyrm 5159 | -8/Scraptown | Visited Science Testing Area 5222 | -8/Scraptown | Visited UFD Registry 5222 | -8/Scraptown | Registered with UFD as "Hammerspawn" 5279 | -8/Scraptown | Visited Observation Area 5419 | -8/Scraptown | Visited A0-MCA Data Center 5433 | -8/Scraptown | Given a C+ rating by A0-MCA 5439 | -8/Scraptown | Found A0-MCA's Component Scanner 5732 | -8/Scraptown | Visited Sword Containment 5774 | -8/Scraptown | Visited Infowarlord's Domain 5787 | -8/Scraptown | Found Exp. Sensor Array 5823 | -8/Scraptown | Visited Analyses Database 5880 | -8/Scraptown | Visited DA-N13 Charitable Foundation 5905 | -8/Scraptown | Found DCF Scrap (28 items) 6048 | -8/Scraptown | Visited Abandonware Association 6073 | -8/Scraptown | Learned abandonware demo "SHUTEYE.EXE" 6073 | -8/Scraptown | Learned abandonware demo "TRNCOAT.EXE" 6122 | -8/Scraptown | Visited Science Guys 6200 | -8/Scraptown | Visited Chapter 10 6456 | -8/Scraptown | Met Optimus 6456 | -8/Scraptown | Accepted into 0bPrime 6575 | -8/Scraptown | Discovered new exit (range 3) 6579 | -8/Scraptown | Entered Factory 6579 | -6/Factory | Evolved 8 slots: Power x1, Propulsion x2, Utility x5 6868 | -6/Factory | Build established: Derelict-Mutant 7152 | -6/Factory | Loaded intel: 8 recycling unit locations 7227 | -6/Factory | Sucked down chute 7227 | -6/Factory | Entered Waste 7242 | -6/Waste | EMP discharged 7256 | -6/Waste | Spotted C-40 Crusher 7302 | -6/Waste | Spotted C-40 Crusher 7304 | -6/Waste | Spotted C-40 Crusher 7312 | -6/Waste | Spotted C-40 Crusher 7319 | -6/Waste | Crushed by Compactor (1 part destroyed, 1 dropped) 7319 | -6/Waste | Crushed by Compactor (1 part destroyed, 1 dropped) 7322 | -6/Waste | Crushed by Compactor (1 part destroyed, 1 dropped) 7322 | -6/Waste | Crushed by Compactor (1 part destroyed) 7325 | -6/Waste | Crushed by Compactor (1 part destroyed, 1 dropped) 7325 | -6/Waste | Crushed by Compactor (1 part destroyed) 7328 | -6/Waste | Crushed by Compactor (0 parts destroyed, 1 dropped) 7333 | -6/Waste | Spotted C-40 Crusher 7335 | -6/Waste | Core integrity fell below 50% 7342 | -6/Waste | EMP discharged 7342 | -6/Waste | System corruption reached 10% 7342 | -6/Waste | Spotted C-40 Crusher 7347 | -6/Waste | Core integrity fell below 20% 7352 | -6/Waste | Destroyed by C-40 Crusher with Compactor Last Messages --------------- 07323_ Arm. Wheel crushed. 07325_ ,RU>3PKIXJ=W|SVMNX>,HJXPONYKJQRRZ 07325_ Hrd. Light Armor Plating crushed. 07325_ System Shield crushed. 07325_ Seismic Detector crushed. 07325_ Companion Sword surprise attacks C-40 Crusher. 07325_ Seismic Detector crushed. 07325_ Exp. Sensor Array crushed. 07328_ Adv. Sensor Array crushed. 07328_ Adv. Melee Analysis Suite crushed. 07330_ Cooling System crushed. 07331_ Sub. Beam Cannon crushed. 07332_ ALERT: Foreign system detected. Charging EMP. 07333_ Drone Bay crushed. 07335_ Mak. Light Armor Plating crushed. 07342_ Arm. Treads fried beyond repair. 07342_ System corrupted (+9). 07344_ KZ&BLJ#